Workbook

Sheet Start
A2: Document Overview | F2: Colour Key | T2: Yes
A3: QPulse Document Title | B3: Method Validation for Chemical Tests Workbook | G3: Mandatory Data Entry | T3: N/A
A4: QPulse Document ID | B4: ES-VALID-S-009 | G4: Optional Text Entry
A5: Issue No | B5: 9 | G5: Ready Data
A6: Issue Date | B6: 2017-09-12 | G6: Corrected Data
A7: Owner | B7: Redacted | G7: Determinand Name
A8: Authorised By | B8: Redacted | G8: No Entry Required
A10: Workbook Status
A12: Method Overview
A13: Instrument | B13: Orbitrap LC-HRAM
A14: Procedure | B14: ES-TORG-P-216 Determination of Emamectin Benzoate in FF sediments
A15: Lab | B15: ASB
A16: Date | B16: 2017-11-01
A18: Personnel Overview
A19: Work Completed By | B19: Redacted
A20: Work Completed Date | B20: 2017-11-01
A21: Authorised By | B21: Redacted
A22: Authorised Date | B22: 2017-11-01
A24: Accreditation and Design Plan Documentation
A25: Has form BF-213 been completed? | B25: Yes
A26: BF-213 Document | B26: See Aquaculture Folder
A27: Accreditation Change Number | B27: See Aquaculture folder
A28: Has validation design plan been completed? | B28: Yes
A29: Validation design plan document | B29: See Aquaculture folder
A31: Validation Notes

Sheet Determinand Names
B2: Determinand Number | C2: Determinand Name(s) - Optional List for > 20 Determinands
B3: 1
B4: 2
B5: 3
B6: 4
B7: 5
B8: 6
B9: 7
B10: 8
B11: 9
B12: 10
B13: 11
B14: 12
B15: 13
B16: 14
B17: 15
B18: 16
B19: 17
B20: 18
B21: 19
B22: 20
B23: 21
B24: 22
B25: 23
B26: 24
B27: 25
B28: 26
B29: 27
B30: 28
B31: 29
B32: 30
B33: 31
B34: 32
B35: 33
B36: 34
B37: 35
B38: 36
B39: 37
B40: 38
B41: 39
B42: 40
B43: 41
B44: 42
B45: 43
B46: 44
B47: 45
B48: 46
B49: 47
B50: 48
B51: 49
B52: 50
B53: 51
B54: 52
B55: 53
B56: 54
B57: 55
B58: 56
B59: 57
B60: 58
B61: 59
B62: 60
B63: 61
B64: 62
B65: 63
B66: 64
B67: 65
B68: 66
B69: 67
B70: 68
B71: 69
B72: 70
B73: 71
B74: 72
B75: 73
B76: 74
B77: 75
B78: 76
B79: 77
B80: 78
B81: 79
B82: 80
B83: 81
B84: 82
B85: 83
B86: 84
B87: 85
B88: 86
B89: 87
B90: 88
B91: 89
B92: 90
B93: 91
B94: 92
B95: 93
B96: 94
B97: 95
B98: 96
B99: 97
B100: 98
B101: 99
B102: 100
B103: 101
B104: 102
B105: 103
B106: 104
B107: 105
B108: 106
B109: 107
B110: 108
B111: 109
B112: 110
B113: 111
B114: 112
B115: 113
B116: 114
B117: 115
B118: 116
B119: 117
B120: 118
B121: 119
B122: 120
B123: 121
B124: 122
B125: 123
B126: 124
B127: 125
B128: 126
B129: 127
B130: 128
B131: 129
B132: 130
B133: 131
B134: 132
B135: 133
B136: 134
B137: 135
B138: 136
B139: 137
B140: 138
B141: 139
B142: 140
B143: 141
B144: 142
B145: 143
B146: 144
B147: 145
B148: 146
B149: 147
B150: 148
B151: 149
B152: 150
B153: 151
B154: 152
B155: 153
B156: 154
B157: 155
B158: 156
B159: 157
B160: 158
B161: 159
B162: 160
B163: 161
B164: 162
B165: 163
B166: 164
B167: 165
B168: 166
B169: 167
B170: 168
B171: 169
B172: 170
B173: 171
B174: 172
B175: 173
B176: 174
B177: 175
B178: 176
B179: 177
B180: 178
B181: 179
B182: 180
B183: 181
B184: 182
B185: 183
B186: 184
B187: 185
B188: 186
B189: 187
B190: 188
B191: 189
B192: 190
B193: 191
B194: 192
B195: 193
B196: 194
B197: 195
B198: 196
B199: 197
B200: 198
B201: 199
... 1 more rows

Sheet Log
A1: Action Taken | B1: Sheet Group | C1: Completed By | D1: Date/Time
A2: Validation sheets created | B2: Validation_1 | C2: Redacted | D2: 2017-11-02T10:10:54
A3: Results submitted | B3: Validation_1 | C3: Redacted | D3: 2017-11-02T10:14:50
A4: Results calculated | B4: Validation_1 | C4: Redacted | D4: 2017-11-02T10:15:33
A5: Results re-submitted - additional notes | B5: Validation_1 | C5: Redacted | D5: 2017-11-02T12:01:29
A6: Results calculated | B6: Validation_1 | C6: Redacted | D6: 2017-11-02T12:01:33

Sheet Help (hidden)
A1: Crib sheet
A2: See procedure QPULSE LINK
B4: Welcome to the new method validation workbook
B5: It is comprised of three sheets which each have a different role
B6: Validation is where the validation results are automatically calculated and contains all the controls for the macros. This sheet is protected from any manual modification.
B7: Results is where data is entered by the user. This sheet is unprotected.
B8: Summary is where a condensed version of the validation results is displayed. This sheet is unprotected
B10: Validation contains several special buttons which control some of the features of the workbook
B11: Setup | C11: This button opens a userform where you can choose what type of validation you are undertaking, number of determinands, type of samples
B12: Submit Raw Results | C12: This button sends the raw results from the Results sheet and enters them into the Validation1 sheet
B13: Calculate | C13: This button will correct all the submitted raw data and calculate the statistical results of the validation exercise. It is only enabled when results have been submitted.
B14: Clear Calculated Results | C14: This button will clear everything from the Validation sheet. This is the only way to remove data as the Validation sheet is protected.
B15: Create Summary | C15: This button creates a condensed set of final results and sends them to the Summary sheet.
B16: Lock | C16: This button deactivates all the other buttons. Once the validation exercise is complete this can be used to prevent accidentally overwriting the template.
B18: To use the sheet it must be set up first for the required exercise. See SPC procedure QPULSE LINK for guidelines
B19: The Setup button is used to create a new template for the validation exercise. This template is applied to the Validation and Results sheet, reflecting the options that you select.
B21: Click setup
B22: Enter determinand names | C22: not mandatory | D22: can enter manually later if needed
B23: number of determinands | C23: mandatory
B24: select MDL type | C24: mandatory
B25: number of unspiked replicates | C25: mandatory
B26: if sample is stable | C26: mandatory
B27: select objective | C27: mandatory
B28: select test types | C28: mandatory | D28: beware test types removed if you change page
B29: enter matrix details | C29: not mandatory | D29: can enter manually later if needed
B30: click OK | C30: sheet generated
B31: if happy click Close Form | C31: form closes
B33: The template should now be generated for the validation exercise. Check that it reflects your needs. If any changes are required, simply select the setup button and start again.
B35: Once the template is configured you can now enter results on to the Results sheet
B36: Determinand names and matrix information can also be entered/updated here.
B37: Enter data for every sample type for every determinand (this is mandatory)
B38: Once all the results are entered click Submit Results on the Validation sheet.
B39: Raw results are now copied over to the Validation sheet.
B40: If raw results need to be amended/updated then the Submit Results button will need to be used again
B41: Once satisfied that all the raw results are final click the Calculate button
B42: The raw results are now corrected (eg for spike/unspike or blank correction) and used to calculate the statistical results
B43: Inspect these calculated results and if satisfied click the Summary button
B44: Final results should be transposed to the Summary sheet and ready for reporting
B46: If finished click the Lock button to prevent accidentally erasing data.

Sheet Test data to delete (hidden)
A2: Mandatory red | B2: RGB(230, 184, 183)
A3: Optional Yellow | B3: RGB(255, 255, 153)
A4: Ready to go green | B4: RGB(196, 215, 155)
A5: Calculated Blue | B5: RGB(170, 213, 240)
A6: Determinand Purple | B6: RGB(177, 160, 199)
C9: Batch | N9: Targets
C10: 1 | D10: 2 | E10: 3 | F10: 4 | G10: 5 | H10: 6 | I10: Units | J10: Required MDL | K10: Required LOQ | L10: Required RSD | M10: Required P% | N10: Expected Conc | O10: Min Acceptable Recovery | P10: Max Acceptable Recovery
J11: 5 | K11: 10 | L11: 10 | M11: 25
A12: 1x6 | B12: Process Blank | C12: 0.1 | D12: 0.321 | E12: 0.542 | F12: 0.763 | G12: 0.984 | H12: 1.205
A13: spike unspike | B13: PCS at 10% Method Range | C13: 10 | D13: 10.5641 | E13: 11.1282 | F13: 11.6923 | G13: 12.2564 | H13: 12.8205 | N13: 10 | O13: 80 | P13: 120
B14: PCS at 90% Method Range | C14: 90 | D14: 90.351 | E14: 90.702 | F14: 91.053 | G14: 91.404 | H14: 91.755 | N14: 90 | O14: 80 | P14: 120
B15: CRM | C15: 50 | D15: 50.561 | E15: 51.122 | F15: 51.683 | G15: 52.244 | H15: 52.805 | N15: 50 | O15: 80 | P15: 120
B16: Unspiked MDL | C16: 50 | D16: 50.874 | E16: 51.748 | F16: 52.622 | G16: 53.496 | H16: 54.37 | AA16: 5 | AB16: 10 | AC16: 10 | AD16: 25
B17: Spiked MDL | C17: 150 | D17: 150.654 | E17: 151.308 | F17: 151.962 | G17: 152.616 | H17: 153.27 | N17: 100 | O17: 80 | P17: 120 | T17: 0.1 | U17: 0.321 | V17: 0.542 | W17: 0.763 | X17: 0.984 | Y17: 1.205
B18: LOQ | C18: 5 | D18: 5.84 | E18: 6.68 | F18: 7.52 | G18: 8.36 | H18: 9.2 | T18: 0.5 | U18: 0.56 | V18: 0.62 | W18: 0.68 | X18: 0.74 | Y18: 0.8
B19: Unspiked Sample | C19: 50 | D19: 50.564 | E19: 51.128 | F19: 51.692 | G19: 52.256 | H19: 52.82 | T19: 10 | U19: 10.5641 | V19: 11.1282 | W19: 11.6923 | X19: 12.2564 | Y19: 12.8205
B20: Spiked Sample | C20: 150 | D20: 150.54 | E20: 151.08 | F20: 151.62 | G20: 152.16 | H20: 152.7 | N20: 100 | O20: 80 | P20: 120 | T20: 11 | U20: 11.561 | V20: 12.122 | W20: 12.683 | X20: 13.244 | Y20: 13.805 | AE20: 10 | AF20: 80 | AG20: 120
J21: 5 | K21: 5 | L21: 10 | T21: 90 | U21: 90.351 | V21: 90.702 | W21: 91.053 | X21: 91.404 | Y21: 91.755
A22: 1x6 | B22: Process Blank | C22: 0.1 | D22: 0.321 | E22: 0.542 | F22: 0.763 | G22: 0.984 | H22: 1.205 | T22: 90 | U22: 90.654 | V22: 91.308 | W22: 91.962 | X22: 92.616 | Y22: 93.27 | AE22: 90 | AF22: 80 | AG22: 120
B23: PCS at 10% Method Range | C23: 10 | D23: 10.5641 | E23: 11.1282 | F23: 11.6923 | G23: 12.2564 | H23: 12.8205 | N23: 10 | O23: 80 | P23: 120 | T23: 49.31169098 | U23: 49.86792685 | V23: 50.42416273 | W23: 50.9803986 | X23: 51.53663448 | Y23: 52.09287035
B24: PCS at 90% Method Range | C24: 90 | D24: 90.351 | E24: 90.702 | F24: 91.053 | G24: 91.404 | H24: 91.755 | N24: 90 | O24: 80 | P24: 120 | T24: 49.31169098 | U24: 50.14854983 | V24: 50.98540867 | W24: 51.82226752 | X24: 52.65912636 | Y24: 53.49598521
B25: CRM | C25: 50 | D25: 50.561 | E25: 51.122 | F25: 51.683 | G25: 52.244 | H25: 52.805 | N25: 50 | O25: 80 | P25: 120 | T25: 98.96279878 | U25: 98.8026463 | V25: 98.64249383 | W25: 98.48234135 | X25: 98.32218888 | Y25: 98.1620364
B26: MDL | C26: 50 | D26: 50.874 | E26: 51.748 | F26: 52.622 | G26: 53.496 | H26: 54.37 | T26: 98.96279878 | U26: 99.00778294 | V26: 99.0527671 | W26: 99.09775125 | X26: 99.14273541 | Y26: 99.18771957 | AE26: 100 | AF26: 80 | AG26: 120
B27: LOQ | C27: 5 | D27: 5.84 | E27: 6.68 | F27: 7.52 | G27: 8.36 | H27: 9.2 | T27: 49.31169098 | U27: 49.86792685 | V27: 50.42416273 | W27: 50.9803986 | X27: 51.53663448 | Y27: 52.09287035
B28: Unspiked Sample | C28: 50 | D28: 50.564 | E28: 51.128 | F28: 51.692 | G28: 52.256 | H28: 52.82 | T28: 49.31169098 | U28: 50.14854983 | V28: 50.98540867 | W28: 51.82226752 | X28: 52.65912636 | Y28: 53.49598521
B29: Spiked Sample | C29: 150 | D29: 150.54 | E29: 151.08 | F29: 151.62 | G29: 152.16 | H29: 152.7 | N29: 100 | O29: 80 | P29: 120 | T29: 98.96279878 | U29: 98.8026463 | V29: 98.64249383 | W29: 98.48234135 | X29: 98.32218888 | Y29: 98.1620364
J30: 5 | K30: 10 | L30: 10 | T30: 98.96279878 | U30: 99.00778294 | V30: 99.0527671 | W30: 99.09775125 | X30: 99.14273541 | Y30: 99.18771957 | AE30: 100 | AF30: 80 | AG30: 120
A31: 6x2 | B31: Process Blank | C31: 0.1 | D31: 0.321 | E31: 0.542 | F31: 0.763 | G31: 0.984 | H31: 1.205 | T31: 49.31169098 | U31: 49.86792685 | V31: 50.42416273 | W31: 50.9803986 | X31: 51.53663448 | Y31: 52.09287035
B32: 2nd Process Blank | C32: 0.5 | D32: 0.56 | E32: 0.62 | F32: 0.68 | G32: 0.74 | H32: 0.8 | T32: 49.31169098 | U32: 50.14854983 | V32: 50.98540867 | W32: 51.82226752 | X32: 52.65912636 | Y32: 53.49598521
B33: PCS at 10% Method Range | C33: 10 | D33: 10.5641 | E33: 11.1282 | F33: 11.6923 | G33: 12.2564 | H33: 12.8205 | T33: 98.96279878 | U33: 98.8026463 | V33: 98.64249383 | W33: 98.48234135 | X33: 98.32218888 | Y33: 98.1620364
B34: 2nd PCS at 10% Method Range | C34: 11 | D34: 11.561 | E34: 12.122 | F34: 12.683 | G34: 13.244 | H34: 13.805 | N34: 10 | O34: 80 | P34: 120 | T34: 98.96279878 | U34: 99.00778294 | V34: 99.0527671 | W34: 99.09775125 | X34: 99.14273541 | Y34: 99.18771957 | AE34: 100 | AF34: 80 | AG34: 120
B35: PCS at 90% Method Range | C35: 90 | D35: 90.351 | E35: 90.702 | F35: 91.053 | G35: 91.404 | H35: 91.755
B36: 2nd PCS at 90% Method Range | C36: 90 | D36: 90.654 | E36: 91.308 | F36: 91.962 | G36: 92.616 | H36: 93.27 | N36: 90 | O36: 80 | P36: 120
B37: CRM | C37: 50 | D37: 50.561 | E37: 51.122 | F37: 51.683 | G37: 52.244 | H37: 52.805
B38: 2nd CRM | C38: 50 | D38: 50.651 | E38: 51.302 | F38: 51.953 | G38: 52.604 | H38: 53.255 | N38: 50 | O38: 80 | P38: 120
B39: Unspiked MDL | C39: 5 | D39: 5.84 | E39: 6.68 | F39: 7.52 | G39: 8.36 | H39: 9.2
B40: 2nd Unspiked MDL | C40: 5 | D40: 5.65844 | E40: 6.31688 | F40: 6.97532 | G40: 7.63376 | H40: 8.2922
B41: Spiked MDL | C41: 50 | D41: 50.564 | E41: 51.128 | F41: 51.692 | G41: 52.256 | H41: 52.82
B42: 2nd Spiked MDL | C42: 50 | D42: 50.84854 | E42: 51.69708 | F42: 52.54562 | G42: 53.39416 | H42: 54.2427 | N42: 100 | O42: 80 | P42: 120
B43: LOQ | C43: 5 | D43: 5.84 | E43: 6.68 | F43: 7.52 | G43: 8.36 | H43: 9.2
B44: 2nd LOQ | C44: 5 | D44: 5.65844 | E44: 6.31688 | F44: 6.97532 | G44: 7.63376 | H44: 8.2922
B45: Unspiked Sample | C45: 50 | D45: 50.564 | E45: 51.128 | F45: 51.692 | G45: 52.256 | H45: 52.82
B46: 2nd Unspiked Sample | C46: 50 | D46: 50.84854 | E46: 51.69708 | F46: 52.54562 | G46: 53.39416 | H46: 54.2427 | R46: raw | S46: 50 | U46: =(S46-S47)/S48 -> 59.86842105 | V46: =(S46/S48)-(S47/S48) -> 59.86842105
B47: Spiked Sample | C47: 150 | D47: 150.54 | E47: 151.08 | F47: 151.62 | G47: 152.16 | H47: 152.7 | R47: blank | S47: 4.5
B48: 2nd Spiked Sample | C48: 150 | D48: 150.748 | E48: 151.496 | F48: 152.244 | G48: 152.992 | H48: 153.74 | N48: 100 | O48: 80 | P48: 120 | R48: recovery | S48: 0.76
A50: 6x2 | B50: Process Blank | C50: 0.1 | D50: 0.321 | E50: 0.542 | F50: 0.763 | G50: 0.984 | H50: 1.205 | J50: 5 | L50: 10
A51: 1 unsp rep | B51: PCS at 10% Method Range | C51: 10 | D51: 10.5641 | E51: 11.1282 | F51: 11.6923 | G51: 12.2564 | H51: 12.8205 | J51: 5 | L51: 10 | N51: 10
B52: 2nd PCS at 10% Method Range | C52: 11 | D52: 11.561 | E52: 12.122 | F52: 12.683 | G52: 13.244 | H52: 13.805 | J52: 5 | L52: 10 | N52: 10 | O52: 80 | P52: 120
B53: PCS at 90% Method Range | C53: 90 | D53: 90.351 | E53: 90.702 | F53: 91.053 | G53: 91.404 | H53: 91.755 | J53: 5 | L53: 10 | N53: 90
B54: 2nd PCS at 90% Method Range | C54: 90 | D54: 90.654 | E54: 91.308 | F54: 91.962 | G54: 92.616 | H54: 93.27 | J54: 5 | L54: 10 | N54: 90 | O54: 80 | P54: 120
B55: CRM | C55: 50 | D55: 50.561 | E55: 51.122 | F55: 51.683 | G55: 52.244 | H55: 52.805 | J55: 5 | L55: 10 | N55: 50
B56: 2nd CRM | C56: 50 | D56: 50.651 | E56: 51.302 | F56: 51.953 | G56: 52.604 | H56: 53.255 | J56: 5 | L56: 10 | N56: 50
B57: Unspiked MDL | C57: 50 | D57: 50.874 | E57: 51.748 | F57: 52.622 | G57: 53.496 | H57: 54.37 | J57: 5 | L57: 10 | O57: 80 | P57: 120
B58: Spiked MDL | C58: 150 | D58: 150.654 | E58: 151.308 | F58: 151.962 | G58: 152.616 | H58: 153.27 | J58: 5 | L58: 10 | N58: 100
B59: 2nd Spiked MDL | C59: 150 | D59: 150.6844 | E59: 151.3688 | F59: 152.0532 | G59: 152.7376 | H59: 153.422 | J59: 5 | L59: 10 | N59: 100 | O59: 80 | P59: 120
B60: LOQ | C60: 5 | D60: 5.84 | E60: 6.68 | F60: 7.52 | G60: 8.36 | H60: 9.2 | J60: 5 | L60: 10
B61: 2nd LOQ | C61: 5 | D61: 5.65844 | E61: 6.31688 | F61: 6.97532 | G61: 7.63376 | H61: 8.2922 | J61: 5 | K61: 15 | L61: 10
B62: Unspiked Sample | C62: 50 | D62: 50.564 | E62: 51.128 | F62: 51.692 | G62: 52.256 | H62: 52.82 | J62: 5 | L62: 10
B63: Spiked Sample | C63: 150 | D63: 150.54 | E63: 151.08 | F63: 151.62 | G63: 152.16 | H63: 152.7 | J63: 5 | L63: 10 | N63: 100
B64: 2nd Spiked Sample | C64: 150 | D64: 150.748 | E64: 151.496 | F64: 152.244 | G64: 152.992 | H64: 153.74 | J64: 5 | L64: 10 | N64: 100 | O64: 80 | P64: 120
J65: 5 | L65: 10
A66: 6x4 | B66: Process Blank | C66: 0.1 | D66: 0.321 | E66: 0.542 | F66: 0.763 | G66: 0.984 | H66: 1.205
A67: 2 unsp | B67: 2nd Process Blank | C67: 0.5 | D67: 0.56 | E67: 0.62 | F67: 0.68 | G67: 0.74 | H67: 0.8
B68: PCS at 10% Method Range | C68: 10 | D68: 10.5641 | E68: 11.1282 | F68: 11.6923 | G68: 12.2564 | H68: 12.8205
B69: 2nd PCS at 10% Method Range | C69: 11 | D69: 11.561 | E69: 12.122 | F69: 12.683 | G69: 13.244 | H69: 13.805
B70: 3rd PCS at 10% Method Range | C70: 10 | D70: 10.5641 | E70: 11.1282 | F70: 11.6923 | G70: 12.2564 | H70: 12.8205
B71: 4th PCS at 10% Method Range | C71: 11 | D71: 11.561 | E71: 12.122 | F71: 12.683 | G71: 13.244 | H71: 13.805 | N71: 10 | O71: 80 | P71: 120
B72: PCS at 90% Method Range | C72: 90 | D72: 90.351 | E72: 90.702 | F72: 91.053 | G72: 91.404 | H72: 91.755
B73: 2nd PCS at 90% Method Range | C73: 90 | D73: 90.654 | E73: 91.308 | F73: 91.962 | G73: 92.616 | H73: 93.27
B74: 3rd PCS at 90% Method Range | C74: 90 | D74: 90.351 | E74: 90.702 | F74: 91.053 | G74: 91.404 | H74: 91.755
B75: 4th PCS at 90% Method Range | C75: 90 | D75: 90.654 | E75: 91.308 | F75: 91.962 | G75: 92.616 | H75: 93.27 | N75: 90 | O75: 80 | P75: 120
B76: CRM | C76: 50 | D76: 50.561 | E76: 51.122 | F76: 51.683 | G76: 52.244 | H76: 52.805 | J76: 5 | L76: 10 | N76: 50
B77: 2nd CRM | C77: 50 | D77: 50.651 | E77: 51.302 | F77: 51.953 | G77: 52.604 | H77: 53.255 | J77: 5 | L77: 10 | N77: 50
B78: 3rd CRM | C78: 50 | D78: 50.561 | E78: 51.122 | F78: 51.683 | G78: 52.244 | H78: 52.805 | J78: 5 | L78: 10 | N78: 50
B79: 4th CRM | C79: 50 | D79: 50.651 | E79: 51.302 | F79: 51.953 | G79: 52.604 | H79: 53.255 | J79: 5 | L79: 10 | N79: 50 | O79: 80 | P79: 120
B80: Unspiked MDL | C80: 50 | D80: 50.874 | E80: 51.748 | F80: 52.622 | G80: 53.496 | H80: 54.37 | J80: 5 | L80: 10
B81: 2nd Unspiked MDL | C81: 50 | D81: 50.8941 | E81: 51.7882 | F81: 52.6823 | G81: 53.5764 | H81: 54.4705 | J81: 5 | L81: 10
B82: Spiked MDL | C82: 150 | D82: 150.654 | E82: 151.308 | F82: 151.962 | G82: 152.616 | H82: 153.27 | J82: 5 | L82: 10 | N82: 100
B83: 2nd Spiked MDL | C83: 150 | D83: 150.6844 | E83: 151.3688 | F83: 152.0532 | G83: 152.7376 | H83: 153.422 | J83: 5 | L83: 10 | N83: 100
B84: 3rd Spiked MDL | C84: 150 | D84: 150.654 | E84: 151.308 | F84: 151.962 | G84: 152.616 | H84: 153.27 | J84: 5 | L84: 10 | N84: 100
B85: 4th Spiked MDL | C85: 150 | D85: 150.6844 | E85: 151.3688 | F85: 152.0532 | G85: 152.7376 | H85: 153.422 | J85: 5 | L85: 10 | N85: 100 | O85: 80 | P85: 120
B86: LOQ | C86: 5 | D86: 5.84 | E86: 6.68 | F86: 7.52 | G86: 8.36 | H86: 9.2 | J86: 5 | L86: 10
B87: 2nd LOQ | C87: 5 | D87: 5.65844 | E87: 6.31688 | F87: 6.97532 | G87: 7.63376 | H87: 8.2922 | J87: 5 | L87: 10
B88: 3rd LOQ | C88: 5 | D88: 5.84 | E88: 6.68 | F88: 7.52 | G88: 8.36 | H88: 9.2 | J88: 5 | L88: 10
B89: 4th LOQ | C89: 5 | D89: 5.65844 | E89: 6.31688 | F89: 6.97532 | G89: 7.63376 | H89: 8.2922 | J89: 5 | K89: 15 | L89: 10
B90: Unspiked Sample | C90: 50 | D90: 50.564 | E90: 51.128 | F90: 51.692 | G90: 52.256 | H90: 52.82 | J90: 5 | L90: 10
B91: 2nd Unspiked Sample | C91: 50 | D91: 50.84854 | E91: 51.69708 | F91: 52.54562 | G91: 53.39416 | H91: 54.2427 | J91: 5 | L91: 10
B92: Spiked Sample | C92: 150 | D92: 150.54 | E92: 151.08 | F92: 151.62 | G92: 152.16 | H92: 152.7 | J92: 5 | L92: 10 | N92: 100
B93: 2nd Spiked Sample | C93: 150 | D93: 150.748 | E93: 151.496 | F93: 152.244 | G93: 152.992 | H93: 153.74 | J93: 5 | L93: 10 | N93: 100
B94: 3rd Spiked Sample | C94: 150 | D94: 150.54 | E94: 151.08 | F94: 151.62 | G94: 152.16 | H94: 152.7 | J94: 5 | L94: 10 | N94: 100
B95: 4th Spiked Sample | C95: 150 | D95: 150.748 | E95: 151.496 | F95: 152.244 | G95: 152.992 | H95: 153.74 | J95: 5 | L95: 10 | N95: 100 | O95: 80 | P95: 120
A98: 6x4 | B98: Process Blank | C98: 0.1 | D98: 0.321 | E98: 0.542 | F98: 0.763 | G98: 0.984 | H98: 1.205 | J98: 5 | L98: 10 | N98: 0
B99: 2nd Process Blank | C99: 0.5 | D99: 0.56 | E99: 0.62 | F99: 0.68 | G99: 0.74 | H99: 0.8 | J99: 5 | L99: 10 | N99: 0
B100: 3rd Process Blank | C100: 0.1 | D100: 0.321 | E100: 0.542 | F100: 0.763 | G100: 0.984 | H100: 1.205 | J100: 5 | L100: 10 | N100: 0
B101: 4th Process Blank | C101: 0.5 | D101: 0.56 | E101: 0.62 | F101: 0.68 | G101: 0.74 | H101: 0.8 | J101: 5 | L101: 10 | N101: 0
B102: PCS at 10% Method Range | C102: 10 | D102: 10.5641 | E102: 11.1282 | F102: 11.6923 | G102: 12.2564 | H102: 12.8205 | J102: 5 | L102: 10 | N102: 10 | R102: 10 | S102: 10.5641 | T102: 11.1282 | U102: 11.6923 | V102: 12.2564 | W102: 12.8205
B103: 2nd PCS at 10% Method Range | C103: 11 | D103: 11.561 | E103: 12.122 | F103: 12.683 | G103: 13.244 | H103: 13.805 | J103: 5 | L103: 10 | N103: 10 | R103: 11 | S103: 11.561 | T103: 12.122 | U103: 12.683 | V103: 13.244 | W103: 13.805
B104: 3rd PCS at 10% Method Range | C104: 10 | D104: 10.5641 | E104: 11.1282 | F104: 11.6923 | G104: 12.2564 | H104: 12.8205 | J104: 5 | L104: 10 | N104: 10 | R104: 10 | S104: 10.5641 | T104: 11.1282 | U104: 11.6923 | V104: 12.2564 | W104: 12.8205
B105: 4th PCS at 10% Method Range | C105: 11 | D105: 11.561 | E105: 12.122 | F105: 12.683 | G105: 13.244 | H105: 13.805 | J105: 5 | L105: 10 | N105: 10 | O105: 80 | P105: 120 | R105: 11 | S105: 11.561 | T105: 12.122 | U105: 12.683 | V105: 13.244 | W105: 13.805
B106: PCS at 90% Method Range | C106: 90 | D106: 90.351 | E106: 90.702 | F106: 91.053 | G106: 91.404 | H106: 91.755 | J106: 5 | L106: 10 | N106: 90 | R106: 90 | S106: 88 | T106: 87 | U106: 90 | V106: 89 | W106: 91
B107: 2nd PCS at 90% Method Range | C107: 90 | D107: 90.654 | E107: 91.308 | F107: 91.962 | G107: 92.616 | H107: 93.27 | J107: 5 | L107: 10 | N107: 90 | R107: 91 | S107: 88.8 | T107: 88.55 | U107: 91 | V107: 89 | W107: 91
B108: 3rd PCS at 90% Method Range | C108: 90 | D108: 90.351 | E108: 90.702 | F108: 91.053 | G108: 91.404 | H108: 91.755 | J108: 5 | L108: 10 | N108: 90 | R108: 90 | S108: 89.2 | T108: 88 | U108: 91 | V108: 89 | W108: 92
B109: 4th PCS at 90% Method Range | C109: 90 | D109: 90.654 | E109: 91.308 | F109: 91.962 | G109: 92.616 | H109: 93.27 | J109: 5 | L109: 10 | N109: 90 | O109: 80 | P109: 120 | R109: 92 | S109: 87.54 | T109: 88 | U109: 90 | V109: 89 | W109: 92
B110: CRM | C110: 50 | D110: 50.561 | E110: 51.122 | F110: 51.683 | G110: 52.244 | H110: 52.805 | J110: 5 | L110: 10 | N110: 50
B111: 2nd CRM | C111: 50 | D111: 50.651 | E111: 51.302 | F111: 51.953 | G111: 52.604 | H111: 53.255 | J111: 5 | L111: 10 | N111: 50
B112: 3rd CRM | C112: 50 | D112: 50.561 | E112: 51.122 | F112: 51.683 | G112: 52.244 | H112: 52.805 | J112: 5 | L112: 10 | N112: 50
B113: 4th CRM | C113: 50 | D113: 50.651 | E113: 51.302 | F113: 51.953 | G113: 52.604 | H113: 53.255 | J113: 5 | L113: 10 | N113: 50
B114: Unspiked MDL | C114: 50 | D114: 50.874 | E114: 51.748 | F114: 52.622 | G114: 53.496 | H114: 54.37 | J114: 5 | L114: 10 | N114: 50
B115: 2nd Unspiked MDL | C115: 50 | D115: 50.8941 | E115: 51.7882 | F115: 52.6823 | G115: 53.5764 | H115: 54.4705 | J115: 5 | L115: 10 | N115: 50
B116: 3rd Unspiked MDL | C116: 50 | D116: 50.874 | E116: 51.748 | F116: 52.622 | G116: 53.496 | H116: 54.37 | J116: 5 | L116: 10 | N116: 50
B117: 4th Unspiked MDL | C117: 50 | D117: 50.8941 | E117: 51.7882 | F117: 52.6823 | G117: 53.5764 | H117: 54.4705 | J117: 5 | L117: 10 | N117: 50
B118: Spiked MDL | C118: 150 | D118: 150.654 | E118: 151.308 | F118: 151.962 | G118: 152.616 | H118: 153.27 | J118: 5 | L118: 10 | N118: 100
B119: 2nd Spiked MDL | C119: 150 | D119: 150.6844 | E119: 151.3688 | F119: 152.0532 | G119: 152.7376 | H119: 153.422 | J119: 5 | L119: 10 | N119: 100
B120: 3rd Spiked MDL | C120: 150 | D120: 150.654 | E120: 151.308 | F120: 151.962 | G120: 152.616 | H120: 153.27 | J120: 5 | L120: 10 | N120: 100
B121: 4th Spiked MDL | C121: 150 | D121: 150.6844 | E121: 151.3688 | F121: 152.0532 | G121: 152.7376 | H121: 153.422 | J121: 5 | L121: 10 | N121: 100
B122: LOQ | C122: 5 | D122: 5.84 | E122: 6.68 | F122: 7.52 | G122: 8.36 | H122: 9.2 | J122: 5 | L122: 10
B123: 2nd LOQ | C123: 5 | D123: 5.65844 | E123: 6.31688 | F123: 6.97532 | G123: 7.63376 | H123: 8.2922 | J123: 5 | L123: 10
B124: 3rd LOQ | C124: 5 | D124: 5.84 | E124: 6.68 | F124: 7.52 | G124: 8.36 | H124: 9.2 | J124: 5 | L124: 10
B125: 4th LOQ | C125: 5 | D125: 5.65844 | E125: 6.31688 | F125: 6.97532 | G125: 7.63376 | H125: 8.2922 | J125: 5 | K125: 15 | L125: 10
B126: Unspiked Sample | C126: 50 | D126: 50.564 | E126: 51.128 | F126: 51.692 | G126: 52.256 | H126: 52.82 | J126: 5 | L126: 10 | R126: =C126 -> 50 | S126: =D126-2.5 -> 48.064 | T126: =E126-5 -> 46.128 | U126: =F126-7.5 -> 44.192 | V126: =G126-10 -> 42.256 | W126: =H126-12.5 -> 40.32
B127: 2nd Unspiked Sample | C127: 50 | D127: 50.84854 | E127: 51.69708 | F127: 52.54562 | G127: 53.39416 | H127: 54.2427 | J127: 5 | L127: 10 | R127: =C127 -> 50 | S127: =D127-2.5 -> 48.34854 | T127: =E127-5 -> 46.69708 | U127: =F127-7.5 -> 45.04562 | V127: =G127-10 -> 43.39416 | W127: =H127-12.5 -> 41.7427
B128: 3rd Unspiked Sample | C128: 50 | D128: 50.564 | E128: 51.128 | F128: 51.692 | G128: 52.256 | H128: 52.82 | J128: 5 | L128: 10 | R128: 50 | S128: 48.064 | T128: 46.128 | U128: 44.192 | V128: 42.256 | W128: 40.32
B129: 4th Unspiked Sample | C129: 50 | D129: 50.84854 | E129: 51.69708 | F129: 52.54562 | G129: 53.39416 | H129: 54.2427 | J129: 5 | L129: 10 | R129: 50 | S129: 48.34854 | T129: 46.69708 | U129: 45.04562 | V129: 43.39416 | W129: 41.7427
B130: Spiked Sample | C130: 150 | D130: 150.54 | E130: 151.08 | F130: 151.62 | G130: 152.16 | H130: 152.7 | J130: 5 | L130: 10 | N130: 100 | R130: 150 | S130: =D130-2.5 -> 148.04 | T130: 146.08 | U130: 144.12 | V130: 142.16 | W130: 140.2 | Y130: 100 | Z130: 5 | AA130: 10
B131: 2nd Spiked Sample | C131: 150 | D131: 150.748 | E131: 151.496 | F131: 152.244 | G131: 152.992 | H131: 153.74 | J131: 5 | L131: 10 | N131: 100 | R131: 150 | S131: 148.248 | T131: 146.496 | U131: 144.744 | V131: 142.992 | W131: 141.24 | Y131: 100 | Z131: 5 | AA131: 10
B132: 3rd Spiked Sample | C132: 150 | D132: 150.54 | E132: 151.08 | F132: 151.62 | G132: 152.16 | H132: 152.7 | J132: 5 | L132: 10 | N132: 100 | R132: 150 | S132: 148.04 | T132: 146.08 | U132: 144.12 | V132: 142.16 | W132: 140.2 | Y132: 100 | Z132: 5 | AA132: 10
B133: 4th Spiked Sample | C133: 150 | D133: 150.748 | E133: 151.496 | F133: 152.244 | G133: 152.992 | H133: 153.74 | J133: 5 | L133: 10 | N133: 100 | O133: 80 | P133: 120 | R133: 150 | S133: 148.248 | T133: 146.496 | U133: 144.744 | V133: 142.992 | W133: 141.24 | Y133: 100 | Z133: 5 | AA133: 10 | AB133: 80 | AC133: 120
B135: Process Blank | C135: 0.1 | D135: 0.321 | E135: 0.542 | F135: 0.763 | G135: 0.984 | H135: 1.205 | J135: 5 | L135: 10
B136: 2nd Process Blank | C136: 0.5 | D136: 0.56 | E136: 0.62 | F136: 0.68 | G136: 0.74 | H136: 0.8 | J136: 5 | L136: 10
B137: PCS at 10% Method Range | C137: 10 | D137: 10.5641 | E137: 11.1282 | F137: 11.6923 | G137: 12.2564 | H137: 12.8205 | J137: 5 | L137: 10 | N137: 10
A138: 6x4 | B138: 2nd PCS at 10% Method Range | C138: 11 | D138: 11.561 | E138: 12.122 | F138: 12.683 | G138: 13.244 | H138: 13.805 | J138: 5 | L138: 10 | N138: 10
A139: 2 unsp reps | B139: 3rd PCS at 10% Method Range | C139: 10 | D139: 10.5641 | E139: 11.1282 | F139: 11.6923 | G139: 12.2564 | H139: 12.8205 | J139: 5 | L139: 10 | N139: 10
B140: 4th PCS at 10% Method Range | C140: 11 | D140: 11.561 | E140: 12.122 | F140: 12.683 | G140: 13.244 | H140: 13.805 | J140: 5 | L140: 10 | N140: 10 | O140: 80 | P140: 120
B141: PCS at 90% Method Range | C141: 90 | D141: 90.351 | E141: 90.702 | F141: 91.053 | G141: 91.404 | H141: 91.755 | J141: 5 | L141: 10 | N141: 90
B142: 2nd PCS at 90% Method Range | C142: 90 | D142: 90.654 | E142: 91.308 | F142: 91.962 | G142: 92.616 | H142: 93.27 | J142: 5 | L142: 10 | N142: 90
B143: 3rd PCS at 90% Method Range | C143: 90 | D143: 90.351 | E143: 90.702 | F143: 91.053 | G143: 91.404 | H143: 91.755 | J143: 5 | L143: 10 | N143: 90
B144: 4th PCS at 90% Method Range | C144: 90 | D144: 90.654 | E144: 91.308 | F144: 91.962 | G144: 92.616 | H144: 93.27 | J144: 5 | L144: 10 | N144: 90 | O144: 80 | P144: 120
B145: CRM | C145: 50 | D145: 50.561 | E145: 51.122 | F145: 51.683 | G145: 52.244 | H145: 52.805 | J145: 5 | L145: 10 | N145: 50
B146: 2nd CRM | C146: 50 | D146: 50.651 | E146: 51.302 | F146: 51.953 | G146: 52.604 | H146: 53.255 | J146: 5 | L146: 10 | N146: 50
B147: 3rd CRM | C147: 50 | D147: 50.561 | E147: 51.122 | F147: 51.683 | G147: 52.244 | H147: 52.805 | J147: 5 | L147: 10 | N147: 50
B148: 4th CRM | C148: 50 | D148: 50.651 | E148: 51.302 | F148: 51.953 | G148: 52.604 | H148: 53.255 | J148: 5 | L148: 10 | N148: 50
B149: Unspiked MDL | C149: 50 | D149: 50.874 | E149: 51.748 | F149: 52.622 | G149: 53.496 | H149: 54.37 | J149: 5 | L149: 10
B150: 2nd Unspiked MDL | C150: 50 | D150: 50.8941 | E150: 51.7882 | F150: 52.6823 | G150: 53.5764 | H150: 54.4705 | J150: 5 | L150: 10
B151: Spiked MDL | C151: 150 | D151: 150.654 | E151: 151.308 | F151: 151.962 | G151: 152.616 | H151: 153.27 | J151: 5 | L151: 10 | N151: 100
B152: 2nd Spiked MDL | C152: 150 | D152: 150.6844 | E152: 151.3688 | F152: 152.0532 | G152: 152.7376 | H152: 153.422 | J152: 5 | L152: 10 | N152: 100
B153: 3rd Spiked MDL | C153: 150 | D153: 150.654 | E153: 151.308 | F153: 151.962 | G153: 152.616 | H153: 153.27 | J153: 5 | L153: 10 | N153: 100
B154: 4th Spiked MDL | C154: 150 | D154: 150.6844 | E154: 151.3688 | F154: 152.0532 | G154: 152.7376 | H154: 153.422 | J154: 5 | L154: 10 | N154: 100 | O154: 80 | P154: 120
B155: LOQ | C155: 5 | D155: 5.84 | E155: 6.68 | F155: 7.52 | G155: 8.36 | H155: 9.2 | J155: 5 | L155: 10
B156: 2nd LOQ | C156: 5 | D156: 5.65844 | E156: 6.31688 | F156: 6.97532 | G156: 7.63376 | H156: 8.2922 | J156: 5 | L156: 10
B157: 3rd LOQ | C157: 5 | D157: 5.84 | E157: 6.68 | F157: 7.52 | G157: 8.36 | H157: 9.2 | J157: 5 | L157: 10
B158: 4th LOQ | C158: 5 | D158: 5.65844 | E158: 6.31688 | F158: 6.97532 | G158: 7.63376 | H158: 8.2922 | J158: 5 | K158: 15 | L158: 10
B159: Unspiked Sample | C159: 50 | D159: 50.564 | E159: 51.128 | F159: 51.692 | G159: 52.256 | H159: 52.82 | J159: 5 | L159: 10
B160: 2nd Unspiked Sample | C160: 50 | D160: 50.84854 | E160: 51.69708 | F160: 52.54562 | G160: 53.39416 | H160: 54.2427 | J160: 5 | L160: 10
B161: Spiked Sample | C161: 150 | D161: 150.54 | E161: 151.08 | F161: 151.62 | G161: 152.16 | H161: 152.7 | J161: 5 | L161: 10 | N161: 100
B162: 2nd Spiked Sample | C162: 150 | D162: 150.748 | E162: 151.496 | F162: 152.244 | G162: 152.992 | H162: 153.74 | J162: 5 | L162: 10 | N162: 100
B163: 3rd Spiked Sample | C163: 150 | D163: 150.54 | E163: 151.08 | F163: 151.62 | G163: 152.16 | H163: 152.7 | J163: 5 | L163: 10 | N163: 100
B164: 4th Spiked Sample | C164: 150 | D164: 150.748 | E164: 151.496 | F164: 152.244 | G164: 152.992 | H164: 153.74 | J164: 5 | L164: 10 | N164: 100 | O164: 80 | P164: 120
O165: 5 | Q165: 10
A166: 1x11 | B166: Process Blank | C166: 0.1
B167: PCS at 10% Method Range | C167: 10 | D167: 10.5641 | E167: 11.1282 | F167: 11.6923 | G167: 12.2564 | H167: 12.8205 | I167: 13.3846 | J167: 13.9487 | K167: 14.5128 | L167: 15.0769 | M167: 15.641 | S167: 10 | T167: 80 | U167: 120
B168: PCS at 90% Method Range | C168: 90 | D168: 90.351 | E168: 90.702 | F168: 91.053 | G168: 91.404 | H168: 91.755 | I168: 92.106 | J168: 92.457 | K168: 92.808 | L168: 93.159 | M168: 93.51 | S168: 90 | T168: 80 | U168: 120
B169: CRM | C169: 50 | D169: 50.561 | E169: 51.122 | F169: 51.683 | G169: 52.244 | H169: 52.805 | I169: 53.366 | J169: 53.927 | K169: 54.488 | L169: 55.049 | M169: 55.61 | O169: 50 | P169: 5 | Q169: 10 | R169: 80 | S169: 120
B170: Unspiked MDL | C170: 50 | D170: 50.874 | E170: 51.748 | F170: 52.622 | G170: 53.496 | H170: 54.37 | I170: 55.244 | J170: 56.118 | K170: 56.992 | L170: 57.866 | M170: 58.74 | O170: 50 | P170: 5 | Q170: 10
B171: Spiked MDL | C171: 150 | D171: 150.654 | E171: 151.308 | F171: 151.962 | G171: 152.616 | H171: 153.27 | I171: 153.924 | J171: 154.578 | K171: 155.232 | L171: 155.886 | M171: 156.54 | O171: 100 | P171: 5 | Q171: 10 | R171: 80 | S171: 120
B172: LOQ | C172: 5 | D172: 5.84 | E172: 6.68 | F172: 7.52 | G172: 8.36 | H172: 9.2 | I172: 10.04 | J172: 10.88 | K172: 11.72 | L172: 12.56 | M172: 13.4 | O172: 5 | P172: 5 | Q172: 10
B173: Unspiked Sample | C173: 50 | D173: 50.564 | E173: 51.128 | F173: 51.692 | G173: 52.256 | H173: 52.82 | I173: 53.384 | J173: 53.948 | K173: 54.512 | L173: 55.076 | M173: 55.64 | O173: 50 | P173: 5 | Q173: 10
B174: Spiked Sample | C174: 150 | D174: 150.54 | E174: 151.08 | F174: 151.62 | G174: 152.16 | H174: 152.7 | I174: 153.24 | J174: 153.78 | K174: 154.32 | L174: 154.86 | M174: 155.4 | O174: 100 | P174: 5 | Q174: 10 | R174: 80 | S174: 120
O175: 5 | Q175: 10
B176: Process Blank | C176: 0.1 | D176: 0.321 | E176: 0.542 | F176: 0.763 | G176: 0.984 | H176: 1.205 | I176: 1.426 | J176: 1.647 | K176: 1.868 | L176: 2.089 | M176: 2.31
B177: 2nd Process Blank | C177: 0.5 | D177: 0.56 | E177: 0.62 | F177: 0.68 | G177: 0.74 | H177: 0.8 | I177: 0.86 | J177: 0.92 | K177: 0.98 | L177: 1.04 | M177: 1.1
B178: PCS at 10% Method Range | C178: 10 | D178: 10.5641 | E178: 11.1282 | F178: 11.6923 | G178: 12.2564 | H178: 12.8205 | I178: 13.3846 | J178: 13.9487 | K178: 14.5128 | L178: 15.0769 | M178: 15.641
B179: 2nd PCS at 10% Method Range | C179: 11 | D179: 11.561 | E179: 12.122 | F179: 12.683 | G179: 13.244 | H179: 13.805 | I179: 14.366 | J179: 14.927 | K179: 15.488 | L179: 16.049 | M179: 16.61 | S179: 10 | T179: 80 | U179: 120
B180: PCS at 90% Method Range | C180: 90 | D180: 90.351 | E180: 90.702 | F180: 91.053 | G180: 91.404 | H180: 91.755 | I180: 92.106 | J180: 92.457 | K180: 92.808 | L180: 93.159 | M180: 93.51
B181: 2nd PCS at 90% Method Range | C181: 90 | D181: 90.4 | E181: 90.8 | F181: 91.2 | G181: 91.6 | H181: 92 | I181: 92.4 | J181: 92.8 | K181: 93.2 | L181: 93.6 | M181: 94 | S181: 90 | T181: 80 | U181: 120
B182: CRM | C182: 50 | D182: 50.561 | E182: 51.122 | F182: 51.683 | G182: 52.244 | H182: 52.805 | I182: 53.366 | J182: 53.927 | K182: 54.488 | L182: 55.049 | M182: 55.61 | O182: 50 | P182: 5 | Q182: 10
B183: 2nd CRM | C183: 50 | D183: 50.651 | E183: 51.302 | F183: 51.953 | G183: 52.604 | H183: 53.255 | I183: 53.906 | J183: 54.557 | K183: 55.208 | L183: 55.859 | M183: 56.51 | O183: 50 | P183: 5 | Q183: 10
B184: Unspiked MDL | C184: 50 | D184: 50.874 | E184: 51.748 | F184: 52.622 | G184: 53.496 | H184: 54.37 | I184: 55.244 | J184: 56.118 | K184: 56.992 | L184: 57.866 | M184: 58.74 | O184: 50 | P184: 5 | Q184: 10
A185: 11x2 | B185: 2nd Unspiked MDL | C185: 50 | D185: 50.8941 | E185: 51.7882 | F185: 52.6823 | G185: 53.5764 | H185: 54.4705 | I185: 55.3646 | J185: 56.2587 | K185: 57.1528 | L185: 58.0469 | M185: 58.941 | O185: 50 | P185: 5 | Q185: 10
B186: Spiked MDL | C186: 150 | D186: 150.654 | E186: 151.308 | F186: 151.962 | G186: 152.616 | H186: 153.27 | I186: 153.924 | J186: 154.578 | K186: 155.232 | L186: 155.886 | M186: 156.54 | O186: 100 | P186: 5 | Q186: 10
B187: 2nd Spiked MDL | C187: 150 | D187: 150.6844 | E187: 151.3688 | F187: 152.0532 | G187: 152.7376 | H187: 153.422 | I187: 154.1064 | J187: 154.7908 | K187: 155.4752 | L187: 156.1596 | M187: 156.844 | O187: 100 | P187: 5 | Q187: 10
B188: LOQ | C188: 5 | D188: 5.84 | E188: 6.68 | F188: 7.52 | G188: 8.36 | H188: 9.2 | I188: 10.04 | J188: 10.88 | K188: 11.72 | L188: 12.56 | M188: 13.4 | O188: 5 | P188: 5 | Q188: 10
B189: 2nd LOQ | C189: 5 | D189: 5.65844 | E189: 6.31688 | F189: 6.97532 | G189: 7.63376 | H189: 8.2922 | I189: 8.95064 | J189: 9.60908 | K189: 10.26752 | L189: 10.92596 | M189: 11.5844 | O189: 5 | P189: 5 | Q189: 10
B190: Unspiked Sample | C190: 50 | D190: 50.564 | E190: 51.128 | F190: 51.692 | G190: 52.256 | H190: 52.82 | I190: 53.384 | J190: 53.948 | K190: 54.512 | L190: 55.076 | M190: 55.64 | O190: 50 | P190: 5 | Q190: 10
B191: 2nd Unspiked Sample | C191: 50 | D191: 50.84854 | E191: 51.69708 | F191: 52.54562 | G191: 53.39416 | H191: 54.2427 | I191: 55.09124 | J191: 55.93978 | K191: 56.78832 | L191: 57.63686 | M191: 58.4854 | O191: 50 | P191: 5 | Q191: 10
B192: Spiked Sample | C192: 150 | D192: 150.54 | E192: 151.08 | F192: 151.62 | G192: 152.16 | H192: 152.7 | I192: 153.24 | J192: 153.78 | K192: 154.32 | L192: 154.86 | M192: 155.4 | O192: 100 | P192: 5 | Q192: 10
B193: 2nd Spiked Sample | C193: 150 | D193: 150.748 | E193: 151.496 | F193: 152.244 | G193: 152.992 | H193: 153.74 | I193: 154.488 | J193: 155.236 | K193: 155.984 | L193: 156.732 | M193: 157.48 | O193: 100 | P193: 5 | Q193: 10
B196: 0.1 | C196: 10 | D196: 90 | F196: 9.7 | G196: 89.7
B197: 0.5 | C197: 11 | D197: 90 | F197: 10.7 | G197: 89.7
B198: 0.321 | C198: 10.5641 | D198: 90.351 | F198: 10.1236 | G198: 89.9105
B199: 0.56 | C199: 11.561 | D199: 90.654 | F199: 11.1205 | G199: 90.2135
B200: 0.542 | C200: 11.1282 | D200: 90.702 | F200: 10.5472 | G200: 90.121
B201: 0.62 | C201: 12.122 | D201: 91.308 | F201: 11.541 | G201: 90.727
B202: 0.763 | C202: 11.6923 | D202: 91.053 | F202: 10.9708 | G202: 90.3315
B203: 0.68 | C203: 12.683 | D203: 91.962 | F203: 11.9615 | G203: 91.2405
B204: 0.984 | C204: 12.2564 | D204: 91.404 | F204: 11.3944 | G204: 90.542
B205: 0.74 | C205: 13.244 | D205: 92.616 | F205: 12.382 | G205: 91.754
B206: 1.205 | C206: 12.8205 | D206: 91.755 | F206: 11.818 | G206: 90.7525
B207: 0.8 | C207: 13.805 | D207: 93.27 | F207: 12.8025 | G207: 92.2675
B210: 0.1 | C210: 10 | D210: 90 | F210: 0.1 | G210: 9.7 | H210: 89.7
B211: 0.5 | C211: 11 | D211: 90 | F211: 0.5 | G211: 10.7 | H211: 89.7
... 44 more rows

Sheet ValidationTemplate_0 (hidden)
B2: Summary Information | F2: Colour Key | J2: Notes
A3: Instrument | G3: Mandatory Data Entry
A4: Procedure | G4: Optional Text Entry
A5: Lab | G5: Ready Data
A6: Date | G6: Corrected Data
A7: Sample Stability | G7: Determinand Name
A8: MDL/LOQ Test Matrix Type | G8: No Entry Required
A9: LOQ Assessment - QC Level
A10: Number of Unspiked Replicates
A11: Stage
A12: Blank Correction
A13: Recovery Correction
A14: P% Assessment - Marine Methods
A15: Validation Task
B17: Matrix | E17: Batch | L17: Targets | S17: Summary Stats | X17: P% Assessment | Y17: Detection Limit Assessment | AA17: Std Dev Assessment | AF17: Bias Assessment | AN17: ANOVA | AW17: Unstable samples
A18: Determinands and Test Types | B18: UKAS Matrix | C18: SEPA Matrix Type | D18: SEPA Matrix Site and Date | E18: 1 | F18: 2 | G18: 3 | H18: 4 | I18: 5 | J18: 6 | K18: Units | L18: Required MDL | M18: Required LOQ | N18: Required RSD% | O18: Required P% | P18: Expected Conc | Q18: Min Acceptable Recovery | R18: Max Acceptable Recovery | S18: Mean | T18: Bias% | U18: Total Standard Deviation | V18: RSD% | W18: Observed Recovery Factor | X18: Observed P% | Y18: Observed MDL | Z18: Observed LOQ | AA18: Target SD from MDL | AB18: Target SD from RSD | AC18: Target SD Value | AD18: F-test Observed Std Dev vs Target Std Dev | AE18: F-Critical | AF18: Recovery % | AG18: Absolute Uncorrected Bias | AH18: Absolute Corrected Bias | AI18: Absolute Bias from Target RSD | AJ18: Absolute Bias from Target MDL | AK18: Target Absolute Bias Value | AL18: T-Test | AM18: T-Critical | AN18: M0 | AO18: M1 | AP18: F-test M0 vs M1 | AQ18: F-Critical | AR18: Sw (Within Batch Std Dev) | AS18: Sb (Between Batch Std Dev) | AT18: St (Total Std Dev) | AW18: Constant of Slope (Mean Standard Conc vs Standard Sb Value) | AX18: Unstable Sb Value | AY18: Unstable M1 | AZ18: Unstable St (Total Std Dev) | BA18: F-test M0 vs Unstable M1 | BB18: F-Critical

Sheet SummaryTemplate_0 (hidden)
A2: Summary Information | F2: Statement of Suitability | N2: Notes
A3: Instrument
A4: Procedure
A5: Lab
A6: Date
A7: Sample Stability | F7: Further Action (if Required)
A8: MDL/LOQ Test Matrix Type
A9: LOQ Assessment - QC Level
A10: Number of Unspiked Replicates
A11: Stage | F11: Summary Authorisation
A12: Blank Correction | F12: Work Completed By
A13: Recovery Correction | F13: Work Completed Date
A14: P% Assessment - Marine Methods | F14: Authorised By
A15: Validation Task | F15: Authorised Date
A17: Assessment Type | B17: Matrix | G17: MDL Assessment | J17: LOQ Assessment | M17: Precision Assessment | T17: P% Assessment | W17: Bias Assessment | AD17: Recovery Assessment | AH17: One Way ANOVA Assessment | AM17: Unstable samples Assessment
A18: Determinands and Test Types | B18: UKAS Matrix | C18: SEPA Matrix Type | D18: SEPA Matrix Site and Date | E18: Units | F18: Overall Assessment Satisfactory? | G18: Observed MDL | H18: Required MDL | I18: Performance Within Target? | J18: Observed LOQ | K18: Required LOQ | L18: Performance Within Target? | M18: Observed Standard Deviation | N18: Target Standard Deviation | O18: Observed RSD% | P18: Target RSD% | Q18: F-test Observed Std Dev vs Target Std Dev | R18: F-Critical (0.05) | S18: Performance Within Target? | T18: Observed P% | U18: Target P% | V18: Performance Within Target? | W18: Observed Absolute Bias | X18: Target Absolute Bias | Y18: Observed Bias% | Z18: Target Bias% | AA18: T-test | AB18: T-Critical | AC18: Performance Within Target? | AD18: Min Acceptable Recovery | AE18: Max Acceptable Recovery | AF18: Recovery Achieved | AG18: Performance Within Target? | AH18: M0 | AI18: M1 | AJ18: F-test M0 vs M1 | AK18: F-Critical | AL18: Performance Within Target? | AM18: M0 | AN18: Unstable M1 | AO18: F-test M0 vs Unstable M1 | AP18: F-Critical | AQ18: Performance Within Target?

Sheet Validation_1
A1: Results calculated by Elliott, Janine at 02/11/2017 12:01:33
B2: Summary Information | F2: Colour Key | J2: Notes
A3: Instrument | B3: Orbitrap LC-HRAM | G3: Mandatory Data Entry | J3: 1. Validation test types: i. Unspiked matrix = unspiked Far field sediment, ii. PCS at 90% range = spiked far field sample
A4: Procedure | B4: ES-TORG-P-216 Determination of Emamectin Benzoate in FF sediments | G4: Optional Text Entry | J4: 2. Purpose of mini validation: To provide within batch data to assess impact on change to injection volume from 2000ul to 400ul,
A5: Lab | B5: ASB Instrument lab | G5: Ready Data | J5: This change has been put in place to resolve interference issues indentified.
A6: Date | B6: 2017-10-31 | G6: Corrected Data | J6: 3. All performance targets hve been met a summary of the performance comparison with the orginal validation data is included on
A7: Sample Stability | B7: N/A | G7: Determinand Name | J7: the summary tab.
A8: MDL/LOQ Test Matrix Type | B8: Not Required | G8: No Entry Required
A9: LOQ Assessment - QC Level | B9: Not Required
A10: Number of Unspiked Replicates | B10: 2
A11: Stage | B11: Stage 1&2 (6 reps) within batch
A12: Blank Correction | B12: Not Required
A13: Recovery Correction | B13: Not Required
A14: P% Assessment - Marine Methods | B14: Not Required
A15: Validation Task | B15: Preliminary Stage 1&2
B17: Matrix | E17: Replicate | L17: Targets | S17: Summary Stats | X17: P% Assessment | Y17: Detection Limit Assessment | AA17: Std Dev Assessment | AF17: Bias Assessment | AN17: ANOVA | AW17: Unstable samples
A18: Determinands and Test Types | B18: UKAS Matrix | C18: SEPA Matrix Type | D18: SEPA Matrix Site and Date | E18: 1 | F18: 2 | G18: 3 | H18: 4 | I18: 5 | J18: 6 | K18: Units | L18: Required MDL | M18: Required LOQ | N18: Required RSD% | O18: Required P% | P18: Expected Conc | Q18: Min Acceptable Recovery | R18: Max Acceptable Recovery | S18: Mean | T18: Bias% | U18: Total Standard Deviation | V18: RSD% | W18: Observed Recovery Factor | X18: Observed P% | Y18: Observed MDL | Z18: Observed LOQ | AA18: Target SD from MDL | AB18: Target SD from RSD | AC18: Target SD Value | AD18: F-test Observed Std Dev vs Target Std Dev | AE18: F-Critical | AF18: Recovery % | AG18: Absolute Uncorrected Bias | AH18: Absolute Corrected Bias | AI18: Absolute Bias from Target RSD | AJ18: Absolute Bias from Target MDL | AK18: Target Absolute Bias Value | AL18: T-Test | AM18: T-Critical | AN18: M0 | AO18: M1 | AP18: F-test M0 vs M1 | AQ18: F-Critical | AR18: Sw (Within Batch Std Dev) | AS18: Sb (Between Batch Std Dev) | AT18: St (Total Std Dev) | AW18: Constant of Slope (Mean Standard Conc vs Standard Sb Value) | AX18: Unstable Sb Value | AY18: Unstable M1 | AZ18: Unstable St (Total Std Dev) | BA18: F-test M0 vs Unstable M1 | BB18: F-Critical
A19: Determinand: Emamectin Benzoate | K19: ng/Kg | L19: 0.2 | N19: 25
A20: Unspiked Sample = Unspiked PCS | B20: Marine SEdiment | C20: Outside AZE = Far field | E20: 0 | F20: 0 | S20: =AVERAGE(E20:F20) -> 0 | U20: =STDEV(E20:F20) -> 0 | V20: 0 | AA20: =IF($L$19>Y20,($L$19/4),(Y20/4)) -> 0.05 | AB20: =($S$20*$N$19)/100 -> 0 | AC20: =IF(AB20>AA20,AB20,AA20) -> 0.05 | AD20: =$U$20^2/AC20^2 -> 0 | AE20: =FINV(0.05,5,10^10) -> 2.214099573
A21: Spiked Sample = PCS at 90% range | B21: Marine SEdiment | C21: Outside AZE = Far field | E21: 63.285 | F21: 66.480625 | G21: 71.55875 | H21: 62.40375 | I21: 66.113125 | J21: 68.354375 | P21: 100 | Q21: 50 | R21: 130 | S21: =AVERAGE(E21:J21) -> 66.3659375 | T21: =($S$21-$P$21)/$P$21*100 -> -33.6340625 | U21: =STDEV(E21:J21) -> 3.352233834 | V21: =(U21/$S$21)*100 -> 5.051136111 | AA21: =IF($L$19>Y21,($L$19/4),(Y21/4)) -> 0.05 | AB21: =($S$21*$N$19)/100 -> 16.59148437 | AC21: =IF(AB21>AA21,AB21,AA21) -> 16.59148437 | AD21: =$U$21^2/AC21^2 -> 0.04082236161 | AE21: =FINV(0.05,5,10^10) -> 2.214099573 | AF21: =($S$21/$P$21)*100 -> 66.3659375 | AG21: =$S$21-$P$21 -> -33.6340625 | AI21: =((2*$N$19)/100)*$P$21 -> 50 | AJ21: =0.5*$L$19 -> 0.1 | AK21: =IF(AI21>AJ21, AI21, AJ21) -> 50 | AL21: =IF($S$21 > $P$21,ABS((($S$21 - ($P$21 + $AK$21)) * (SQRT(6)/$U$21))),ABS((($S$21 - ($P$21 - $AK$21)) * (SQRT(6)/$U$21)))) -> 11.95865146 | AM21: =_xlfn.T.INV(0.95, (6 - 1)) -> 2.015048373

Sheet Results_1
B2: Summary Information | F2: Colour Key | J2: Notes
A3: Instrument | B3: Orbitrap LC-HRAM | G3: Mandatory Data Entry | J3: 1. Validation test types: i. Unspiked matrix = unspiked Far field sediment, ii. PCS at 90% range = spiked far field sample
A4: Procedure | B4: ES-TORG-P-216 Determination of Emamectin Benzoate in FF sediments | G4: Optional Text Entry | J4: 2. Purpose of mini validation: To provide within batch data to assess impact on change to injection volume from 2000ul to 400ul,
A5: Lab | B5: ASB Instrument lab | G5: Ready Data | J5: This change has been put in place to resolve interference issues indentified.
A6: Date | B6: 2017-10-31 | G6: Corrected Data | J6: 3. All performance targets hve been met a summary of the performance comparison with the orginal validation data is included on
A7: Sample Stability | B7: N/A | G7: Determinand Name | J7: the summary tab.
A8: MDL/LOQ Test Matrix Type | B8: Not Required | G8: No Entry Required
A9: LOQ Assessment - QC Level | B9: Not Required
A10: Number of Unspiked Replicates | B10: 2
A11: Stage | B11: Stage 1&2 (6 reps) within batch
A12: Blank Correction | B12: Not Required
A13: Recovery Correction | B13: Not Required
A14: P% Assessment - Marine Methods | B14: Not Required
A15: Validation Task | B15: Preliminary Stage 1&2
B17: Matrix | E17: Replicate | L17: Targets
A18: Determinands and Test Types | B18: UKAS Matrix | C18: SEPA Matrix Type | D18: SEPA Matrix Site and Date | E18: 1 | F18: 2 | G18: 3 | H18: 4 | I18: 5 | J18: 6 | K18: Units | L18: Required MDL | M18: Required LOQ | N18: Required RSD% | O18: Required P% | P18: Expected Conc | Q18: Min Acceptable Recovery | R18: Max Acceptable Recovery
A19: Determinand: Emamectin Benzoate | K19: ng/Kg | L19: 0.2 | N19: 25
A20: Unspiked Sample = Unspiked PCS | B20: Marine SEdiment | C20: Outside AZE = Far field | E20: 0 | F20: 0
A21: Spiked Sample = PCS at 90% range | B21: Marine SEdiment | C21: Outside AZE = Far field | E21: =202.512/4*1.25 -> 63.285 | F21: =212.738/4*1.25 -> 66.480625 | G21: =228.988/4*1.25 -> 71.55875 | H21: =199.692/4*1.25 -> 62.40375 | I21: =211.562/4*1.25 -> 66.113125 | J21: =218.734/4*1.25 -> 68.354375 | P21: 100 | Q21: 50 | R21: 130

Sheet Summary_1
A2: Summary Information | F2: Statement of Suitability | N2: Notes
A3: Instrument | B3: Orbitrap LC-HRAM | F3: The two data-sets are statistically different as demonstrated by the above F-test. This is due to the improved variance from the mini-validation. Therefore performance can be assessed as showing no deterioration. There is no statistical difference between means as demonstrated by the above T-test. Therefore it is concluded that there has been no change to method recovery with the change in injection volume. Therefore it can be concluded performance from the previous full validation has been maintained and can continue to be quoted with confidence. | N3: 1. Validation test types: i. unspiked matrix = unspiked far field sediment, ii. PCS at 90% range = spiked far field sample. 2 Purpose of mini validation : To provide within batch data to assess the impact on change to injection volume from 2000ul to 400ul. This change has been put in place to resolve interference issues identified in CAPA 17/822. 3 All performance targets have been met (MDL is to be reassessed). A summary of the performance comparison with the original validation data is included below.
A4: Procedure | B4: ES-TORG-P-216 Determination of Emamectin Benzoate in FF sediments
A5: Lab | B5: ASB Instrument lab
A6: Date | B6: 2017-10-31
A7: Sample Stability | B7: N/A | F7: Further Action (if Required)
A8: MDL/LOQ Test Matrix Type | B8: Not Required | F8: No further action required to assess method performance RSD and Recovery. Further validation to be carried out to assess method detection limit.
A9: LOQ Assessment - QC Level | B9: Not Required
A10: Number of Unspiked Replicates | B10: 2
A11: Stage | B11: Stage 1&2 (6 reps) within batch | F11: Summary Authorisation
A12: Blank Correction | B12: Not Required | F12: Work Completed By | I12: Redacted
A13: Recovery Correction | B13: Not Required | F13: Work Completed Date | I13: 2017-11-01
A14: P% Assessment - Marine Methods | B14: Not Required | F14: Authorised By | I14: Redacted
A15: Validation Task | B15: Preliminary Stage 1&2 | F15: Authorised Date | I15: 2017-11-01
A17: Assessment Type | B17: Matrix | G17: MDL Assessment | J17: LOQ Assessment | M17: Precision Assessment | T17: P% Assessment | W17: Bias Assessment | AD17: Recovery Assessment | AH17: One Way ANOVA Assessment | AM17: Unstable samples Assessment
A18: Determinands and Test Types | B18: UKAS Matrix | C18: SEPA Matrix Type | D18: SEPA Matrix Site and Date | E18: Units | F18: Overall Assessment Satisfactory? | G18: Observed MDL | H18: Required MDL | I18: Performance Within Target? | J18: Observed LOQ | K18: Required LOQ | L18: Performance Within Target? | M18: Observed Standard Deviation | N18: Target Standard Deviation | O18: Observed RSD% | P18: Target RSD% | Q18: F-test Observed Std Dev vs Target Std Dev | R18: F-Critical (0.05) | S18: Performance Within Target? | T18: Observed P% | U18: Target P% | V18: Performance Within Target? | W18: Observed Absolute Bias | X18: Target Absolute Bias | Y18: Observed Bias% | Z18: Target Bias% | AA18: T-test | AB18: T-Critical | AC18: Performance Within Target? | AD18: Min Acceptable Recovery | AE18: Max Acceptable Recovery | AF18: Recovery Achieved | AG18: Performance Within Target? | AH18: M0 | AI18: M1 | AJ18: F-test M0 vs M1 | AK18: F-Critical | AL18: Performance Within Target? | AM18: M0 | AN18: Unstable M1 | AO18: F-test M0 vs Unstable M1 | AP18: F-Critical | AQ18: Performance Within Target?
A19: Determinand: Emamectin Benzoate | E19: ng/Kg | F19: =IF(OR(I19="No",L19="No",S19="No",V19="No",AC19="No",AG19="No",AL19="No",AQ19="No"),"No", "Yes") -> Yes | I19: =IF(COUNTIF(I20:I20,"No"),"No",IF(COUNTIF(I20:I20,"Yes"),"Yes","")) ->  | L19: =IF(COUNTIF(L20:L20,"No"),"No",IF(COUNTIF(L20:L20,"Yes"),"Yes","")) ->  | O19: =MAX(O20:O20) -> 5.051136111 | S19: =IF(COUNTIF(S20:S20,"No"),"No",IF(COUNTIF(S20:S20,"Yes"),"Yes","")) -> Yes | V19: =IF(COUNTIF(V20:V20,"No"),"No",IF(COUNTIF(V20:V20,"Yes"),"Yes","")) ->  | W19: =IF(ABS(MAX(W20:W20))>ABS(MIN(W20:W20)),MAX(W20:W20),MIN(W20:W20)) -> -33.6340625 | Y19: =IF(ABS(MAX(Y20:Y20))>ABS(MIN(Y20:Y20)),MAX(Y20:Y20),MIN(Y20:Y20)) -> -33.6340625 | AC19: =IF(COUNTIF(AC20:AC20,"No"),"No",IF(COUNTIF(AC20:AC20,"Yes"),"Yes","")) -> Yes | AG19: =IF(COUNTIF(AG20:AG20,"No"),"No",IF(COUNTIF(AG20:AG20,"Yes"),"Yes","")) -> Yes | AL19: =IF(COUNTIF(AL20:AL20,"No"),"No",IF(COUNTIF(AL20:AL20,"Yes"),"Yes","")) ->  | AQ19: =IF(COUNTIF(AQ20:AQ20,"No"),"No",IF(COUNTIF(AQ20:AQ20,"Yes"),"Yes","")) -> 
A20: Spiked Sample = PCS at 90% range | B20: Marine SEdiment | C20: Outside AZE = Far field | M20: 3.352233834 | N20: 16.59148437 | O20: 5.051136111 | P20: 16.59148437 | S20: =IF(M20<N20,"Yes",IF(Q20<R20, "Yes","No")) -> Yes | W20: -33.6340625 | X20: 50 | Y20: -33.6340625 | Z20: 50 | AC20: =IF(ABS(W20)<X20, "Yes",IF(AA20<AB20,"Yes","No")) -> Yes | AD20: 50 | AE20: 130 | AF20: 66.3659375 | AG20: =IF(AND(AF20>AD20,AF20<AE20), "Yes","No") -> Yes
D21: Observed RSD% | E21: Recovery Achieved %
C22: Validation data 11-22/09/17 | D22: 11.822 | E22: 70.516
C23: Mini validation 01/11/17 | D23: 5.051 | E23: 66.366
C24: % difference in observed values | D24: =(D23/D22*100)-100 -> -57.27457283 | E24: =(E23/E22*100)-100 -> -5.885189177
C25: The precision of the mini validation data is is much lower than the original validation data, showing an improvement in precision, therefore improvement in method performance. It should be noted that the mini-validation performance is from within-batch data and the full validation performance is from between-batch data. Therefore it would be expected that performance from within-batch data would be tighter than for between-batch data. The achieved recoveries are within 6% of of each other indicating that the methodology differences to the injection volume have had little effect on the method recovery. The two data sets are assessed for comparibility below using F-test and T-test to compare variances and means respectively.
C28: F-Test Two-Sample for Variances
D30: Variable 1 | E30: Variable 2
C31: Mean | D31: 70.51579427 | E31: 66.3659375
C32: Variance | D32: 65.47543803 | E32: 11.23747168
C33: Observations | D33: 24 | E33: 6
C34: df | D34: 23 | E34: 5
C35: F | D35: 5.826527523
C36: P(F<=f) one-tail | D36: 0.02948887935
C37: F Critical one-tail | D37: 4.533926357
C39: F-Test resut is above the critical value showing that statistically the variances of the two data sets are significantly different from each other.
C43: t-Test: Two-Sample Assuming Unequal Variances
D45: Variable 1 | E45: Variable 2
C46: Mean | D46: 70.51579427 | E46: 66.3659375
C47: Variance | D47: 65.47543803 | E47: 11.23747168
C48: Observations | D48: 24 | E48: 6
C49: Hypothesized Mean Difference | D49: 0
C50: df | D50: 21
C51: t Stat | D51: 1.934658812
C52: P(T<=t) one-tail | D52: 0.03330886128
C53: t Critical one-tail | D53: 1.720742903
C54: P(T<=t) two-tail | D54: 0.06661772256
C55: t Critical two-tail | D55: 2.079613845
C58: T-Test (two tailed) result is below the critical value showing that staistically the means of the two sets of data are not significantly different from each other.
C61: Conclusion: The two data-sets are statistically different as demonstrated by the above F-test. This is due to the improved variance from the mini-validation. Therefore performance can be assessed as showing no deterioration. There is no statistical difference between means as demonstrated by the above T-test. Therefore it is concluded that there has been no change to method recovery with the change in injection volume. Therefore it can be concluded performance from the previous full validation has been maintained and can continue to be quoted with confidence.
